Cogmind - Beta 16.1 @@@ ROGUE MODE // 2026.06.18 @ 20:51:16 Player: Lolterzard Result: Destroyed by H-55 Commando with Assault Rifle Performance ------------- Evolutions (2) 1000 Regions Visited (6) 1200 Robots Destroyed (106) 530 Value Destroyed (2978) 2978 Prototype IDs (31) 620 Alien Tech Used (0) 0 Bonus (456) 456 TOTAL SCORE: 6784 Bonus ------- High Alert Combat Kills 156 Aligned with FarCom 300 Cogmind --------- Core Integrity 0/550 Matter 213/300 Energy 450/450 System Corruption 0% Temperature Cool (24) Movement Walking (330) Ox3 Location -8/Storage Parts ------- > --- POWER (2) -------- Deuterium Engine Deuterium Engine > --- PROPULSION (4) --- Improved Aluminum Leg Improved Aluminum Leg Improved Flight Unit > --- UTILITY (3) ------ Large Storage Unit High-capacity Storage Unit Improved Sensor Array > --- WEAPON (2) ------- Enhanced Autogun Enhanced Autogun > --- INVENTORY (20) --- Deuterium Engine Heavy Armor Plating Heavy Laser Heavy Assault Rifle Heavy Assault Rifle Heavy Assault Rifle Improved Assault Rifle Improved Assault Rifle Improved Assault Rifle Improved Assault Rifle Improved Assault Rifle Enhanced Autogun Enhanced Autogun Missile Launcher Improved Datajack Peak State ------------ > --- POWER ------------ Improved Deuterium Engine Improved Deuterium Engine > --- PROPULSION ------- Flying Fortress v7 > --- UTILITY ---------- Cooling System Large Storage Unit Seismic Detector > --- WEAPON ----------- Heavy Laser Heavy Laser > --- INVENTORY -------- Ion Engine Improved Deuterium Engine Improved Deuterium Engine Improved Flight Unit Improved Heat Sink Small Matter Pod Improved Terrain Scanner Heavy Armor Plating High-powered Tractor Beam Heavy Laser Heavy Laser Light Assault Rifle Minigun Improved Datajack [Rating: 56] Favorites ----------- Power Improved Deuterium Engine Engine Improved Deuterium Engine Power Core Light Nuclear Core Propulsion Light Treads Treads Light Treads Leg Improved Aluminum Leg Hover Unit Aerolev Unit Flight Unit Flying Fortress v7 Utility Large Storage Unit Device Seismic Detector Storage Large Storage Unit Processor Signal Interpreter Weapon Improved Assault Rifle Energy Gun Heavy Laser Ballistic Gun Improved Assault Rifle Launcher Rocket Launcher Special Melee Weapon Improved Datajack Build | -11 -10 -10 -10 -9 -8 -8 ------- Run | Yrd Mat Min Exi Min Mat Sto Slots Evolved 4 | . . . . . 4 . Power 1 | . . . . . 1 . Propulsion 2 | . . . . . 2 . Utility 1 | . . . . . 1 . Weapon . | . . . . . . . Parts Attached 72 | 7 8 2 . 1 15 39 Power 16 | 1 1 1 . . 4 9 Engine 14 | 1 1 1 . . 4 7 Core 2 | . . . . . . 2 Reactor . | . . . . . . . Propulsion 21 | 2 2 . . . 2 15 Treads 9 | 2 2 . . . . 5 Leg 2 | . . . . . . 2 Wheel . | . . . . . . . Hover 4 | . . . . . . 4 Flight 6 | . . . . . 2 4 Utility 11 | 2 2 1 . . 3 3 Device 6 | 1 . . . . 3 2 Storage 4 | 1 2 . . . . 1 Processor 1 | . . 1 . . . . Hackware . | . . . . . . . Protection . | . . . . . . . Artifact . | . . . . . . . Weapon 24 | 2 3 . . 1 6 12 Energy Gun 7 | 1 . . . . 4 2 Energy Cannon . | . . . . . . . Ballistic Gun 13 | 1 2 . . . 2 8 Ballistic Cannon . | . . . . . . . Launcher 3 | . 1 . . 1 . 1 Special Weapon . | . . . . . . . Impact Weapon . | . . . . . . . Slashing Weapon . | . . . . . . . Piercing Weapon . | . . . . . . . Special Melee Weapon 1 | . . . . . . 1 Unidentified Prototypes 8 | . . . . . 2 6 Parts Lost 24 | . 1 . . . 3 20 Power 6 | . 1 . . . . 5 Propulsion 10 | . . . . . . 10 Utility 4 | . . . . . 1 3 Weapon 4 | . . . . . 2 2 Highest Loss Streak 7 | . 1 . . . 2 7 To Critical Strikes . | . . . . . . . Average Backups 12 | 1 7 13 13 12 13 14 Power 2 | . 2 2 3 3 3 2 Propulsion 1 | . . 2 2 1 1 . Utility 2 | . . 3 4 3 4 2 Weapon 6 | . 3 5 4 4 3 8 Tool/Special . | . . . . . . . Unused Backups 21 | . . . 2 . 3 16 Power 5 | . . . . . 2 3 Propulsion 5 | . . . 1 . 1 3 Utility 3 | . . . . . . 3 Weapon 8 | . . . 1 . . 7 Tool/Special . | . . . . . . . Average Slot Usage (%) 88 | . 99 100 100 100 71 85 Engine 14 | . 13 14 14 14 17 14 Treads 17 | . 28 28 28 28 . 14 Hover 4 | . . . . . . 8 Flight 2 | . . . . . 8 2 Device 11 | . 14 3 . . 9 15 Storage 11 | . 14 14 14 14 9 10 Processor 3 | . . 10 14 14 7 . Energy Gun 1 | . 1 . . . 1 1 Ballistic Gun 19 | . 25 28 28 25 16 15 Peak Build Rating 56 | 7 8 8 11 12 56 56 Average Rating 26 | 5 7 8 9 11 44 34 On Entrance 14 | . 7 8 8 11 12 55 Avg Prop Armor Cover (%) 19 | 22 . . . . . 12 Naked Turns . | . . . . . . . Heaviest Build 85 | 13 29 28 27 29 50 85 Greatest Support 80 | 40 40 40 40 40 50 80 Greatest Overweight (x) 28 | 3 . . . . . 28 Average Overweight (x) . | . . . . . . . Largest Inventory Capacity 20 | 8 15 15 15 15 15 20 Average Capacity 15 | 7 9 15 15 15 15 17 Most Carried 20 | 2 12 15 15 15 15 20 Average Carried 13 | 1 7 13 14 14 14 15 Final Capacity 20 | 8 15 15 15 15 15 20 Final Carried 16 | 2 12 15 15 15 15 16 Class Distribution -------------------- 63% | Mutant 14% | Scavenger-Skirmisher 11% | Scavenger-Mutant 10% | Skirmisher Dominant Class ---------------- Scavenger-Mutant | -10/Materials Mutant | -10/Mines Mutant | -10/Exiles Mutant | -9/Mines Mutant | -8/Materials Mutant | -8/Storage Resources | -11 -10 -10 -10 -9 -8 -8 ----------- Run | Yrd Mat Min Exi Min Mat Sto Matter Collected 2963 | 265 333 124 . 30 696 1515 Remotely 576 | . . . . . . 576 Salvage Created 4351 | 15 540 82 . 62 904 2748 Parts 235 | 4 39 4 . 8 49 131 Haulers Intercepted 10 | . 2 . . . 2 6 Recyclers Shooed 2 | . . . . . 1 1 Parts Field Recycled . | . . . . . . . Retrieved Matter . | . . . . . . . Parts Self-Destructed . | . . . . . . . Prevented . | . . . . . . . Parts Restored . | . . . . . . . Kills | -11 -10 -10 -10 -9 -8 -8 ------- Run | Yrd Mat Min Exi Min Mat Sto Combat Hostiles Destroyed 71 | . 11 3 . 6 12 39 Guns 67 | . 11 3 . 3 12 38 AOE 4 | . . . . 3 . 1 Classes Destroyed 12 | 1 6 1 . . 3 1 Worker 8 | . 1 . . . 2 5 Builder 2 | . . . . . 1 1 Tunneler 2 | 1 1 . . . . . Hauler 10 | . 2 . . . 2 6 Recycler 6 | . . . . . 3 3 Operator 2 | . 1 . . . . 1 Watcher 6 | . 3 . . . 1 2 Swarmer 15 | . 6 . . 6 3 . Grunt 43 | . 5 2 . . 8 28 Duelist 2 | . . . . . . 2 Sentry 10 | . . . . . 1 9 Assembled 1 | . . 1 . . . . Best Kill Streak 6 | 1 4 3 . 3 5 6 Combat Bots Only 6 | . 3 3 . 3 4 6 Max Kills in Single Turn 3 | 1 1 1 . 3 2 1 Gunslinging 1 | . . . . 1 1 . Exploded 3 | . . . . 3 . 1 Melee . | . . . . . . . Uniques/NPCs Destroyed . | . . . . . . . Combat | -11 -10 -10 -10 -9 -8 -8 -------- Run | Yrd Mat Min Exi Min Mat Sto Hostile Shots Fired 475 | . 68 10 . 24 91 282 Missed 130 | . 19 2 . 9 26 74 Hits 345 | . 49 8 . 15 65 208 Melee 7 | . . . . . . 7 Projectile 338 | . 49 8 . 15 65 201 Critical Strikes 10 | . 2 . . . 2 6 Damage Taken 5130 | . 524 89 . 113 941 3463 Core 665 | . 94 10 . 7 115 439 Absorbed by Shields . | . . . . . . . Regen/Repaired (Parts) 292 | . . . . . 15 277 Core Remaining (%) 77 | 100 . . . 55 . . Volleys Fired 371 | 2 66 8 . 6 91 198 Largest 2 | 2 2 2 . 2 2 2 Hottest 114 | 70 70 40 . 53 94 114 Shots Fired 713 | 4 132 16 . 12 167 382 Gun 706 | 4 130 16 . 11 167 378 Cannon . | . . . . . . . Launcher 7 | . 2 . . 1 . 4 Special . | . . . . . . . Kinetic 622 | 2 124 16 . 11 154 315 Thermal 59 | 2 6 . . . 13 38 Explosive 7 | . 2 . . 1 . 4 Electromagnetic 25 | . . . . . . 25 Robot Hit Streak 43 | 4 9 11 . 3 14 43 Robot Miss Streak 6 | . 4 1 . 3 6 4 Penetration Max . | . . . . . . . Secondary Targets 11 | . 3 1 . 1 3 3 Max Gunslinging Chain 1 | . 1 1 . 1 1 1 Shots Hit Robots 501 | 4 73 12 . 6 107 299 Core Hits 208 | 1 37 7 . 5 42 116 Critical Kills 2 | . . . . . . 2 Critical Parts Destroyed 1 | . . . . . . 1 Critical Strikes 6 | . . . . . . 6 Burn 3 | . . . . . . 3 Destroy 3 | . . . . . . 3 Melee Attacks 18 | . . . . . . 18 Impact . | . . . . . . . Slashing . | . . . . . . . Piercing . | . . . . . . . Sneak Attacks 3 | . . . . . . 3 Combat Hostiles . | . . . . . . . Follow-up Attacks . | . . . . . . . Damage Inflicted 7596 | 52 872 166 . 234 1705 4567 Guns 7220 | 52 819 158 . 62 1705 4424 Cannons . | . . . . . . . Explosions 361 | . 50 . . 172 . 139 Melee . | . . . . . . . Ramming 15 | . 3 8 . . . 4 Kinetic 6082 | 26 783 158 . 62 1555 3498 Thermal 872 | 26 36 . . . 150 660 Explosive 268 | . 50 . . 172 . 46 Electromagnetic 359 | . . . . . . 359 Impact . | . . . . . . . Slashing . | . . . . . . . Piercing . | . . . . . . . Highest Corruption . | . . . . . . . Average Corruption . | . . . . . . . Corruption Purged . | . . . . . . . Corruption Blocked . | . . . . . . . Overload Shots . | . . . . . . . Overflow Damage 17 | . . . . 17 . . Projectiles . | . . . . . . . Explosions 17 | . . . . 17 . . Melee . | . . . . . . . Knockbacks . | . . . . . . . Impact . | . . . . . . . Kinetic . | . . . . . . . Secondary . | . . . . . . . Self-Inflicted Damage 51 | . . . . . . 51 Shots 1 | . . . . . . 1 Rammed 3 | . 1 1 . . . 1 Targets Rammed 3 | . 1 1 . . . 1 Kicked . | . . . . . . . Crushed . | . . . . . . . Highest Temperature 306 | 9 27 . . . 274 306 Average Temperature 66 | 6 9 . . . 67 74 Received Heat Transfer 2280 | . 234 30 . . 477 1539 Effects 2 | . . . . . 1 1 Energy Bleed 1 | . . . . . . 1 Interference 1 | . . . . . 1 . Siege Activations . | . . . . . . . Martial Activations . | . . . . . . . Shielding Activations . | . . . . . . . Robots Disrupted . | . . . . . . . Combat Hostiles . | . . . . . . . Robots Corrupted . | . . . . . . . Combat Hostiles . | . . . . . . . Parts Fried 2 | . . . . . . 2 Impact Corruptions . | . . . . . . . Robots Melted . | . . . . . . . Combat Hostiles . | . . . . . . . Parts Melted 2 | . . . . . . 2 Heat Transferred 1863 | 74 111 . . . 296 1382 Parts Sabotaged . | . . . . . . . Parts Stolen . | . . . . . . . Parts Stripped . | . . . . . . . Power Chain Reactions 1 | . . . . . . 1 Alert | -11 -10 -10 -10 -9 -8 -8 ------- Run | Yrd Mat Min Exi Min Mat Sto Maximum Alert Level 2 | . . . . . . 2 Low Security (%) 58 | 100 100 100 . 100 100 25 Level 1 16 | . . . . . . 29 Level 2 24 | . . . . . . 44 Level 3 . | . . . . . . . Level 4 . | . . . . . . . Level 5 . | . . . . . . . High Security . | . . . . . . . Max Security . | . . . . . . . Peak Influence 594 | 5 147 40 . 82 160 594 Initial 42 | . . 15 . . 24 42 Average 213 | 1 83 4 . 42 84 335 Influence Increases 2504 | 5 394 40 . 152 462 1451 Destroy 0b10 Robot/C 1400 | . 220 40 . 120 240 780 Destroy 0b10 Robot/NC 180 | 5 40 . . . 45 90 Destroy Leader 332 | . 60 . . 20 46 206 Trap Triggered on 0b10 10 | . . . . . . 10 Successful Hack 27 | . . . . . 9 18 Disable Machine 105 | . . . . . 30 75 Destroy Structure 75 | . 14 . . 12 2 47 Partial Spotted 30 | . . . . . 15 15 Lose Combat Pursuer 345 | . 60 . . . 75 210 Influence Decreases 1916 | 5 355 79 . 90 424 963 Entered New Map 120 | . . 24 . . 38 58 Time Decay 1556 | 5 345 55 . 90 356 705 Lost Part 240 | . 10 . . . 30 200 Squads Dispatched 14 | . 2 . . . 1 11 Investigation 3 | . . . . . 1 2 Extermination . | . . . . . . . Reinforcement 3 | . 2 . . . . 1 Assault 2 | . . . . . . 2 Garrison 6 | . . . . . . 6 Intercept . | . . . . . . . Searches Triggered . | . . . . . . . Construction Impeded . | . . . . . . . Haulers Reinforced . | . . . . . . . Active Scanning Responses . | . . . . . . . Cargo Convoy Interrupts . | . . . . . . . Stealth | -11 -10 -10 -10 -9 -8 -8 --------- Run | Yrd Mat Min Exi Min Mat Sto Distress Signals 4 | . 1 . . . 1 2 Communications Jammed . | . . . . . . . Distress Signals . | . . . . . . . Times Spotted 120 | . 23 3 . 7 24 63 Peak Tracking Total 9 | . 4 2 . 4 7 9 Tactical Retreats 16 | . 2 . . . 3 11 Traps | -11 -10 -10 -10 -9 -8 -8 ------- Run | Yrd Mat Min Exi Min Mat Sto Traps Triggered 1 | . . . . . . 1 Indirectly . | . . . . . . . Trap Hack Attempts 22 | . . . . . . 22 Triggered . | . . . . . . . Disarmed . | . . . . . . . Reprogrammed 3 | . . . . . . 3 Reused 1 | . . . . . . 1 Traps Extracted . | . . . . . . . Installed . | . . . . . . . Triggered 1 | . . . . . . 1 Machines | -11 -10 -10 -10 -9 -8 -8 ---------- Run | Yrd Mat Min Exi Min Mat Sto Machines Disabled 7 | . . . . . 2 5 Max in Single Turn 2 | . . . . . 1 2 Machines Repaired . | . . . . . . . Machines Dismantled . | . . . . . . . Machines Sabotaged . | . . . . . . . Overloaded Fab Kills . | . . . . . . . Hacking | -11 -10 -10 -10 -9 -8 -8 --------- Run | Yrd Mat Min Exi Min Mat Sto Machines Accessed 22 | . 5 . 1 . 7 9 Terminals 16 | . 4 . . . 5 7 Fabricators . | . . . . . . . Repair Stations 3 | . . . . . 1 2 Recycling Units 1 | . 1 . . . . . Scanalyzers 1 | . . . . . 1 . Garrison Access . | . . . . . . . Total Hacks 44 | . 9 . 1 . 14 20 Successful 23 | . 3 . 1 . 8 11 Failed 21 | . 6 . . . 6 9 Catastrophic 2 | . 1 . . . 1 . Database Lockouts . | . . . . . . . Manual 3 | . 1 . 1 . . 1 Terminals 30 | . 7 . . . 10 13 Fabricators . | . . . . . . . Repair Stations 9 | . . . . . 2 7 Recycling Units 2 | . 2 . . . . . Scanalyzers 2 | . . . . . 2 . Garrison Access . | . . . . . . . Terminal Hacks 12 | . 2 . 1 . 4 5 Open Door 2 | . . . . . . 2 Branch Access Points 1 | . . . . . 1 . Alert Level 1 | . 1 . . . . . Locate Traps 2 | . . . . . 1 1 Hauler Manifests 1 | . . . . . 1 . Registered Components 2 | . . . . . 1 1 Zone Layout 2 | . 1 . . . . 1 Proto ID Catalog 1 | . . . 1 . . . Fabricator Hacks . | . . . . . . . Repair Station Hacks 8 | . . . . . 2 6 Scan Component 4 | . . . . . 1 3 Repair 4 | . . . . . 1 3 Recycling Unit Hacks 1 | . 1 . . . . . Retrieve Components 1 | . 1 . . . . . Scanalyzer 2 | . . . . . 2 . Insert Component 1 | . . . . . 1 . Analyze 1 | . . . . . 1 . Garrison Access Hacks . | . . . . . . . Unauthorized Hacks . | . . . . . . . Terminals . | . . . . . . . Fabricators . | . . . . . . . Repair Stations . | . . . . . . . Recycling Units . | . . . . . . . Scanalyzers . | . . . . . . . Garrison Access . | . . . . . . . Data Cores Recovered 2 | . 1 . . . . 1 Used 2 | . 1 . . . . 1 Hacking Detections 11 | . 3 . . . 3 5 Full Trace Events 3 | . . . . . 2 1 Feedback Events . | . . . . . . . Feedback Blocked . | . . . . . . . Robot Schematics Acquired . | . . . . . . . Robots Built . | . . . . . . . Authchips . | . . . . . . . Time . | . . . . . . . Total Robot Build Rating . | . . . . . . . Part Schematics Acquired 1 | . . . . . 1 . Parts Built . | . . . . . . . Authchips . | . . . . . . . Time . | . . . . . . . Total Part Build Rating . | . . . . . . . Part Studies Acquired . | . . . . . . . Parts Repaired 4 | . . . . . 1 3 Time 154 | . . . . . 26 128 Parts Recycled . | . . . . . . . Recycled Matter . | . . . . . . . Retrieved Matter . | . . . . . . . Retrieved Components 10 | . 10 . . . . . Parts Scanalyzed 1 | . . . . . 1 . Part Schematics Acquired 1 | . . . . . 1 . Parts Damaged 1 | . . . . . 1 . Bothacking | -11 -10 -10 -10 -9 -8 -8 ------------ Run | Yrd Mat Min Exi Min Mat Sto Used RIF Installer . | . . . . . . . Robots Hacked 2 | . . . . . . 2 Non-combat 2 | . . . . . . 2 Combat . | . . . . . . . Robot Hacks Applied 2 | . . . . . . 2 parse_system 1 | . . . . . . 1 no_distress 1 | . . . . . . 1 Relay Couplers Released . | . . . . . . . Fabnet Peak Effective % . | . . . . . . . Robots Rewired . | . . . . . . . Allies Hacked . | . . . . . . . Hacks Repelled . | . . . . . . . Allies | -11 -10 -10 -10 -9 -8 -8 -------- Run | Yrd Mat Min Exi Min Mat Sto Total Allies . | . . . . . . . Largest Group . | . . . . . . . Highest-Rated Group . | . . . . . . . Highest-Rated Ally . | . . . . . . . Total Orders . | . . . . . . . Ally Attacks . | . . . . . . . Total Damage . | . . . . . . . Kills . | . . . . . . . Allies Corrupted . | . . . . . . . Allies Melted . | . . . . . . . Intel | -11 -10 -10 -10 -9 -8 -8 ------- Run | Yrd Mat Min Exi Min Mat Sto Active Infowar (turns) 4092 | 13 886 123 . . 760 2310 Sensors 1534 | . . . . . . 1534 Seismic 2558 | 13 886 123 . . 760 776 Robot Analysis Total . | . . . . . . . Derelict Logs Recovered 3 | . . 2 . 1 . . Drone Launches . | . . . . . . . Drone Recoveries . | . . . . . . . Exploration | -11 -10 -10 -10 -9 -8 -8 ------------- Run | Yrd Mat Min Exi Min Mat Sto Turns Passed 5915 | 89 886 504 330 180 838 3088 Spaces Moved 2786 | 56 400 243 205 99 592 1191 Core 42 | 29 . . . . . 13 Treads 1507 | 27 400 243 205 99 . 533 Legs 1 | . . . . . . 1 Wheels . | . . . . . . . Hover 403 | . . . . . . 403 Flight 833 | . . . . . 592 241 Fastest Speed 50 | 50 160 160 160 160 50 50 Average Speed 126 | 128 160 160 160 160 50 136 Slowest Speed 1450 | 200 160 160 160 160 50 1450 Overloaded Moves . | . . . . . . . Propulsion Burnouts . | . . . . . . . Robots Hopped 7 | . . . . . 3 4 Potential Cave-ins . | . . . . . . . Cave-ins Triggered . | . . . . . . . Exploration Rate (%) 46 | 3 67 51 60 21 38 82 Regions Visited 6 Branch Regions 4 Pre-discovered Areas 1 | . . . . 1 . . Known Exits Taken 4 | . . 1 1 1 1 . Unknown Exits Taken 2 | 1 1 . . . . . Scrap Searched 2 | . . 1 . 1 . . Spaces Dug 10 | . . . . . . 10 Terrain Destroyed 65 | . 15 . . 12 . 38 Melee . | . . . . . . . Projectile . | . . . . . . . AOE 65 | . 15 . . 12 . 38 Terrain Rammed . | . . . . . . . Walls Destroyed . | . . . . . . . Machines Disabled . | . . . . . . . Actions | -11 -10 -10 -10 -9 -8 -8 --------- Run | Yrd Mat Min Exi Min Mat Sto Total 4514 | 66 524 341 209 109 987 2278 Wait 1105 | . 37 86 . . 251 731 Move 2766 | 55 399 242 204 98 585 1183 Hop 7 | . . . . . 3 4 Pick Up 69 | 2 8 2 1 2 17 37 Fast Attach 27 | 7 . . . . 4 16 Attach 31 | . 2 . . . 7 22 Detach 3 | . 1 . . . 1 1 Swap 38 | . 8 2 . 1 11 16 Drop 54 | . 2 . 4 2 17 29 Fire 371 | 2 66 8 . 6 91 198 Melee 18 | . . . . . . 18 Ram . | . . . . . . . Kick . | . . . . . . . Crush 3 | . 1 1 . . . 1 Escape Stasis . | . . . . . . . Rewire . | . . . . . . . Trap 22 | . . . . . . 22 Miscellaneous . | . . . . . . . Route ------- -11/Scrapyard -10/Materials (discovered 3 exits: *Mat x2 / [*Min]) -10/Mines (discovered 3 exits: *Mat x2 / *Exi) -10/Exiles (discovered 2 exits: *Min x2) -9/Mines -8/Materials -8/Storage History --------- Turn | Location | Event 7 | -11/Scrapyard | Discovered new exit (range 13) 90 | -11/Scrapyard | Entered Materials 316 | -10/Materials | Build established: Mutant 622 | -10/Materials | Discovered new exit (range 16) 787 | -10/Materials | Build established: Scavenger-Mutant 787 | -10/Materials | Discovered new exit (range 12) 926 | -10/Materials | Discovered new exit (range 15) 976 | -10/Materials | Entered Mines 1073 | -10/Mines | Found a hidden stash of uninstalled traps 1091 | -10/Mines | Discovered new exit (range 5) 1105 | -10/Mines | Identified exit to Materials 1177 | -10/Mines | Discovered exit to Materials (range 14) 1295 | -10/Mines | Excavation squad dispatched 1295 | -10/Mines | A large section of the Mines collapsed 1405 | -10/Mines | Build established: Mutant 1474 | -10/Mines | Deemed a non-threat by the Exiles lab entrance 1474 | -10/Mines | Discovered new exit (range 5) 1479 | -10/Mines | Identified exit to Exiles 1480 | -10/Mines | Entered Exiles 1481 | -10/Exiles | Identified exit to Mines 1524 | -10/Exiles | Met 8R-AWN 1548 | -10/Exiles | Met EX-HEX 1591 | -10/Exiles | Met EX-BIN 1610 | -10/Exiles | Aligned with FarCom system 1612 | -10/Exiles | Given EX-Vault access code 1648 | -10/Exiles | Opened EX-Vault 1663 | -10/Exiles | Found Flying Fortress v7 1695 | -10/Exiles | Warned to stay clear of 0b10 Research branches 1716 | -10/Exiles | Exiles lab attacked by MAIN.C 1810 | -10/Exiles | Left Exiles lab with Flying Fortress v7 1810 | -10/Exiles | Entered Mines 1969 | -9/Mines | Discovered new exit (range 14) 1988 | -9/Mines | Identified exit to Materials 1990 | -9/Mines | Entered Materials 1990 | -8/Materials | Evolved 4 slots: Power x1, Propulsion x2, Utility x1 1991 | -8/Materials | Identified exit to Storage 2686 | -8/Materials | Repaired Seismic Detector 2828 | -8/Materials | Entered Storage 2869 | -8/Storage | Repaired Seismic Detector 3473 | -8/Storage | Garrison activated, responded to threat 4234 | -8/Storage | Core integrity fell below 50% 4279 | -8/Storage | Lost 7 parts (2p4n1u) 4679 | -8/Storage | Build established: Scavenger-Skirmisher 4731 | -8/Storage | Repaired Imp. Assault Rifle 4783 | -8/Storage | Repaired Imp. Assault Rifle 5228 | -8/Storage | First assault squad dispatched 5308 | -8/Storage | Garrison activated, responded to threat 5335 | -8/Storage | Lost 4 parts (1p2n1u) 5344 | -8/Storage | Core integrity fell below 20% 5576 | -8/Storage | Build established: Skirmisher 5823 | -8/Storage | Lost 3 parts (3n) 5916 | -8/Storage | Destroyed by H-55 Commando with Assault Rifle Last Messages --------------- 05885_ K-01 Serf collects debris. 05890_ Slug penetrates Wall. 05892_ K-01 Serf collects debris. 05899_ Acquired Imp. Aluminum Leg. 05899_ K-01 Serf collects debris. 05900_ Dropped Imp. Flight Unit. 05902_ K-01 Serf collects debris. 05903_ Slug penetrates Reinforced Barrier. 05905_ R-06 Scavenger collects Particle Gun. 05906_ K-01 Serf collects debris. 05906_ Slug penetrates Reinforced Barrier. 05907_ Dropped Imp. Flight Unit. 05907_ Acquired Imp. Aluminum Leg. 05909_ Slug penetrates R-06 Scavenger. 05910_ R-06 Scavenger collects Katana. 05912_ K-01 Serf collects debris. 05913_ R-06 Scavenger collects Aluminum Leg. 05913_ Penetrated by Slug. 05913_ Door Terminal disabled. 05916_ Penetrated by Slug. Map ----- +----------------------------------------------------+ | ????????????????????????????????????#"T """ ## #? | | ???????????? ?????????????????????#"" """ # #? | | ???????????# ?????????????????????# ## #? | | ???????????# ?????????????????????########### ## | | ???????????# #????????????????????# ## # | | ???????????# #????????????????????# """ =!## # | | ???????????# "????????????????????# " """"[+! # | | ??????????## ????????????????????# " "" "!## # | | ???????????+ "????????????????????# " "" "%## # | | ???????????# #????????????????????# """" "!## # | | ??????##"### ##???????????????????# """!## # | | ??????#! !# " ##??????????????????# [=!% ## # | | ??????#! !# %%# ##?????????????????# !*!![## # | | ??????#! ! ###########??????????######+#### ## | | ??????#! ! # % # #??????????# [% /! | | ??######## # ] ########???# !*! | | ?## % # % % + ? #???# * | | ?# """ # # ! ###" #???############## | | ?## """ # # [ % #?#?" #????????#######?? | | ??# """ # # % #?#" #?????????#####??? | | ??# """ + + #?# #?????????# #??? | | ??# """ # # ! #?# #?????????# [#??? | | ??# # ###########?# % #???????###"[=#??? | | ??# # #???????##### %#?????#### %[*#??? | | ??# # #??????##k # ####### ###+###### | | ??########## #??????# =@h/r % | | ?########### #??????##" ## k % % | | ?# # #???????# ## ! ![ | | ?# # #???????# ### ################## ! | | ?# # #???????# #?# ###########?????## | | ?# """""" ? #???????####?# # #?????## | | ????????" # ############## # #?????## | | ????????" # + #??????# | | ?# """""" # ########### # ! /% #??????# | | ?# + #### # ##+############### | | ?############+###+#""" """ + + ]## | | ???????????[ ! #"T[! """ #+##+######## #T#### | | ????????? #"""% """ # #????# ###??# | | ????????# ####! # [[ #????# #????### | | ????????# #?# # [[ #????# #??????# | | ????????# !!#?###"T"### ###### #??????# | | ????????# / #???#"""#?# ! + #??????# | | ????????# #???#####?# ########??????# | | ????????# #?????????########?????????????# | | ????????###########??????????????????????????????# | | ?????????????????????????????????????????????????# | | ?????????????????????????????????????????????????# | | ?????????????????????????????????????????????????? | | ?????????????????????????????????????????????????? | | | +----------------------------------------------------+ Best States ------------- Heat Dissipation 53 Energy Generation 27 Energy Capacity 480 Matter Stores 300 Matter Capacity 300 Sight Range 16 Robot Scan Range 15 Terrain Scan Density 10 Evasion (%) 60 Recoil Reduction 4 Item Schematics ----------------- Rocket Launcher | -8/Materials | Scanalyzed Robot Schematics ------------------ None Fabricated ------------ Nothing Repaired ---------- Seismic Detector | 25% | -8/Materials Seismic Detector | 20% | -8/Storage Imp. Assault Rifle | 11% | -8/Storage Imp. Assault Rifle | 2% | -8/Storage Studied --------- None Alien Tech Used ----------------- None Achievements -------------- Junior Dev Challenges ------------ None Game ------ Seed CobblerRemoteNanovents Manual? 0 Play Time 00:38:53 Cumulative 42.2 hours Start 2026.06.18 @ 20:12:47 End 2026.06.18 @ 20:51:16 Sessions 1 Manual Loads 0 Difficulty Rogue Special Mode None Game No. 78 Rogue 78 Adventurer 0 Explorer 0 Win Type - Total 0 Types 0/0/0/0/0/0/0/0/0/0 Lore% 22 Gallery% 22 Achievement% 20 Wizard Run 0 Options --------- Layout 0 ASCII 0 Keyboard 0 Movement Mouse Keybinds 0 Fullscreen 2 Font 24/Smallcaps Map View 76x50 Zoom Use 0% Tactical HUD 1 Map Filters NONE Filters NONE Steam 1 RUN: 331bae12-262e-40e1-8cde-2346d6ec3cae